bitfinex-derivatives/quotes_ETHF0:USTF0_20251008
["timestamp","ask_amount","ask_price","bid_price","bid_amount"]
[1759905628079,0.4349,4454.7,4454.6,1.74444585]
[1759905628278,0.7452,4454.7,4454.6,1.74444585]
[1759905630281,0.7452,4454.7,4454.6,0.7508]
[1759905630586,1.14914,4454.6,4454.5,3.5355]
[1759905630882,1.14914,4454.6,4454.5,3.7433]
[1759905632081,1.14914,4454.6,4454.5,0.5355]
[1759905632379,1.14917,4454.3,4454.2,1.84129201]
[1759905635589,1.14917,4454.3,4454.2,0.00268953]
[1759905635784,1.14917,4454.3,4454.2,1.80610778]
[1759905635989,1.14917,4454.3,4454.2,0.00268953]
[1759905636190,1.14917,4454.3,4454.2,0.53178953]
[1759905636489,0.83887,4454.3,4454.2,0.73778953]
[1759905638192,1.15747,4454.3,4454.2,0.73778953]
[1759905638891,1.15747,4454.3,4454.2,2.5706475]
[1759905639091,0.83887,4454.3,4454.2,2.5706475]
[1759905639291,0.62097,4454.3,4454.2,2.5706475]
[1759905639489,0.83617,4454.3,4454.2,0.21138953]
[1759905639687,4.06336795,4454.3,4454.2,0.73778953]
[1759905639887,1.15477,4454.3,4454.2,0.73778953]
[1759905640485,1.15477,4454.3,4454.2,0.53178953]
[1759905640689,1.15477,4454.3,4454.2,0.00268953]
[1759905642392,6.15477,4454.3,4454.2,0.00268953]
[1759905642694,1.15477,4454.3,4454.2,0.00268953]
[1759905642891,1.92341585,4454.3,4454.2,0.00268953]
[1759905643893,0.83568,4453.1,4453.0,0.3123]
[1759905644091,1.16918,4453.1,4453.0,0.3123]
[1759905644797,1.16918,4453.1,4453.0,2.07176126]
[1759905644993,1.17196026,4453.1,4453.0,2.07176126]
[1759905645194,0.83846026,4453.1,4453.0,2.62626126]
[1759905645396,0.40686026,4453.1,4453.0,2.62626126]
[1759905645592,0.00278026,4453.1,4453.0,2.85126126]
[1759905656212,0.76788026,4453.1,4453.0,2.62626126]
[1759905656509,0.76788026,4453.1,4453.0,2.50316126]
[1759905656813,0.76788026,4453.1,4453.0,2.28736126]
[1759905657812,0.76788026,4453.1,4453.0,2.50316126]
[1759905658107,0.76788026,4453.1,4453.0,2.62626126]
[1759905660510,0.43438026,4453.1,4453.0,2.62626126]
[1759905661504,0.76788026,4453.1,4453.0,2.50316126]
[1759905662205,0.76788026,4453.1,4453.0,2.07176126]
[1759905662905,0.76788026,4453.1,4453.0,0.00260378]
[1759905665310,0.76788026,4453.1,4453.0,0.55340378]
[1759905665904,0.76788026,4453.1,4453.0,0.00260378]
[1759905668011,3.66184155,4453.1,4453.0,0.00260378]
[1759905670410,3.88684155,4453.1,4453.0,0.00260378]
[1759905671215,4.36051301,4453.1,4453.0,0.00260378]
[1759905673411,1.46655172,4453.1,4453.0,0.90340378]
[1759905673618,0.99288026,4453.1,4453.0,0.90340378]
[1759905674216,0.99288026,4453.1,4453.0,0.77780378]
[1759905674417,0.99288026,4453.1,4453.0,0.55340378]
[1759905674619,0.99288026,4453.1,4453.0,0.32990378]
[1759905675711,0.99288026,4453.1,4453.0,0.00260378]
[1759905680716,1.46661962,4453.1,4453.0,0.00260378]
[1759905687232,4.32502532,4453.1,4453.0,0.00260378]
[1759905689334,4.32873804,4453.1,4453.0,0.00260378]
[1759905690837,0.3244,4452.4,4452.3,1.19717356]
[1759905691132,1.16147,4452.1,4452.0,0.3273]
[1759905691329,1.38647,4452.1,4452.0,0.3273]
[1759905691836,0.83709,4451.8,4451.7,1.52447356]
[1759905692133,1.16149,4451.8,4451.7,1.74989624]
[1759905692334,1.16149,4451.8,4451.7,0.55272268]
[1759905693228,1.16149,4451.8,4451.7,0.00192268]
[1759905694437,1.16149,4451.8,4451.7,0.32922268]
[1759905694735,1.16149,4451.8,4451.7,0.55272268]
[1759905694935,1.16149,4451.8,4451.7,0.32922268]
[1759905695837,1.16149,4451.8,4451.7,0.55272268]
[1759905696433,1.16149,4451.8,4451.7,0.32922268]
[1759905696638,1.16149,4451.8,4451.7,0.00192268]
[1759905697438,1.16149,4451.8,4451.7,0.53512268]
[1759905697836,1.16149,4451.8,4451.7,0.31082268]
[1759905698140,1.16149,4451.8,4451.7,0.53512268]
[1759905701340,1.16149,4451.8,4451.7,0.00192268]
[1759905701933,2.12042546,4451.8,4451.7,0.00192268]
[1759905702247,5.10736985,4451.8,4451.7,0.00192268]
[1759905702435,5.58421726,4451.8,4451.7,0.00192268]
[1759905704946,0.40429,4450.7,4450.6,3.2078]
[1759905705245,1.15979,4450.7,4450.6,3.6412]
[1759905705547,1.15979,4450.7,4450.6,3.9611]
[1759905705748,1.15979,4450.7,4450.6,5.72519301]
[1759905706049,1.15979,4450.7,4450.6,5.72714056]
[1759905708254,0.84349,4450.7,4450.6,5.72714056]
[1759905708547,0.62459,4450.7,4450.6,5.72714056]
[1759905709538,0.40429,4450.7,4450.6,5.72714056]
[1759905709738,0.225,4451.0,4450.6,5.72714056]
[1759905709945,0.40427,4451.0,4450.8,1.79661546]
[1759905710247,0.40427,4451.0,4450.9,0.7533]
[1759905710647,0.40427,4451.0,4450.9,41.5533]
[1759905711349,0.72057,4451.0,4450.9,41.1199]
[1759905712553,1.15977,4451.0,4450.9,0.5468]
[1759905717160,1.15977,4451.0,4450.9,0.7533]
[1759905718757,0.40426,4451.1,4451.0,0.8796]
[1759905719061,1.15976,4451.1,4451.0,0.8796]
[1759905719468,1.15976,4451.1,4451.0,0.5468]
[1759905720256,1.15976,4451.1,4451.0,0.8796]
[1759905720461,1.15976,4451.1,4451.0,0.7533]
[1759905721662,1.15976,4451.1,4451.0,0.5468]
[1759905722366,0.40428,4450.8,4450.7,1.19717356]
[1759905722565,0.4392,4450.7,4450.6,6.64946322]
[1759905722864,0.7555,4450.7,4450.6,3.86814755]
[1759905723063,0.7555,4450.7,4450.6,3.75654755]
[1759905723269,0.7555,4450.7,4450.6,0.00194755]
[1759905724466,0.7555,4450.7,4450.6,0.32184755]
[1759905725464,0.7555,4450.7,4450.6,0.00194755]
[1759905729774,0.7555,4450.7,4450.6,0.30984755]
[1759905730067,0.7555,4450.7,4450.6,0.00194755]
[1759905730274,0.7555,4450.7,4450.6,0.53514755]
[1759905731469,0.40429,4450.8,4450.6,0.44514755]
[1759905731670,0.62928,4450.9,4450.8,0.4432]
[1759905731866,0.62928,4450.9,4450.8,0.7511]
[1759905732472,0.62928,4450.9,4450.8,3.9589]
[1759905733471,0.40428,4450.9,4450.8,3.9589]
[1759905733875,0.40428,4450.9,4450.8,5.16389842]
[1759905734575,0.61008,4450.9,4450.8,5.16389842]
[1759905735778,0.92398,4450.9,4450.8,5.16389842]
[1759905736780,1.13698,4450.9,4450.8,5.16389842]
[1759905738680,0.82308,4450.9,4450.8,5.16389842]
[1759905739577,0.82308,4450.9,4450.8,1.95609842]
[1759905739777,1.13698,4450.9,4450.8,1.95609842]
[1759905740579,0.82308,4450.9,4450.8,1.95609842]
[1759905741277,1.13698,4450.9,4450.7,1.20499842]
[1759905741472,0.1247,4451.0,4450.6,0.00194755]
[1759905741473,0.82309,4450.7,4450.6,0.00194755]
[1759905741673,1.13699,4450.7,4450.6,0.30984755]
[1759905741872,1.13699,4450.7,4450.6,0.00194755]
[1759905743381,1.62650508,4450.7,4450.6,0.00194755]
[1759905753986,1.62650508,4450.7,4450.6,0.30984755]
[1759905754284,1.62650508,4450.7,4450.6,0.00194755]
[1759905756086,1.62650508,4450.7,4450.6,0.32604755]
[1759905756287,1.62650508,4450.7,4450.6,0.00194755]
[1759905758788,4.83430508,4450.7,4450.6,0.00194755]
[1759905762087,4.83430508,4450.7,4450.6,0.54364755]
[1759905762479,4.83430508,4450.7,4450.6,0.00194755]
[1759905763180,4.83430508,4450.7,4450.6,0.32254755]
[1759905763386,4.83430508,4450.7,4450.6,0.00194755]
[1759905765195,4.83430508,4450.7,4450.6,0.22304755]
[1759905765395,4.83430508,4450.7,4450.6,0.54364755]
[1759905766095,4.83430508,4450.7,4450.6,0.32254755]
[1759905766695,4.83430508,4450.7,4450.6,0.54364755]
[1759905768191,5.05930508,4450.7,4450.6,0.54364755]
[1759905768390,5.05930508,4450.7,4450.6,0.76954755]
[1759905770798,5.05930508,4450.7,4450.6,0.32254755]
[1759905771098,5.05930508,4450.7,4450.6,0.54364755]
[1759905772202,4.53240508,4450.7,4450.6,0.76954755]
[1759905772391,4.85400508,4450.7,4450.6,0.76954755]
[1759905772586,5.06160508,4450.7,4450.6,0.76954755]
[1759905772994,4.10160508,4450.7,4450.6,0.76954755]
[1759905773194,0.40425,4451.2,4450.9,0.85128]
[1759905773500,0.62924,4451.3,4451.2,0.7676]
[1759905773692,1.11985886,4451.3,4451.2,0.7676]
[1759905774393,3.4328,4451.6,4451.3,0.7676]
[1759905774591,3.4328,4451.6,4451.2,5.0]
[1759905774592,3.83701,4451.6,4451.5,0.8947]
[1759905775901,4.04591,4451.6,4451.5,0.8947]
[1759905776497,3.61201,4451.6,4451.5,0.8947]
[1759905776692,0.40421,4451.6,4451.5,0.8947]
[1759905781204,0.61311,4451.6,4451.5,0.8947]
[1759905782807,1.36731,4451.6,4451.5,0.5417]
[1759905782998,0.7381,4451.4,4451.3,0.3206]
[1759905783200,1.14233,4451.4,4451.3,0.7676]
[1759905784700,1.14233,4451.4,4451.3,0.5417]
[1759905787009,1.15886,4451.1,4451.0,0.3185]
[1759905787613,1.15886,4451.1,4451.0,0.8714]
[1759905788803,0.84286,4451.1,4451.0,0.8714]
[1759905789001,1.32651,4451.8,4451.1,0.3185]
[1759905789308,1.15879,4451.8,4451.7,0.7439]
[1759905789503,0.84279,4451.8,4451.7,0.7439]
[1759905789704,1.06779,4451.8,4451.7,0.7439]
[1759905790508,0.62919,4451.8,4451.7,0.7439]
[1759905790696,0.40419,4451.8,4451.7,0.7439]
[1759905791312,0.40418,4452.1,4452.0,0.5529]
[1759905791502,0.225,4452.5,4452.0,4.53085277]
[1759905791710,0.40414,4452.4,4452.3,1.51405277]
[1759905794413,0.40414,4452.4,4452.3,42.31405277]
[1759905794705,0.225,4452.5,4452.3,41.99555277]
[1759905794901,0.225,4452.5,4452.4,0.7439]
[1759905795101,0.85413,4452.5,4452.4,0.7439]
[1759905795307,1.38373,4452.5,4452.4,0.3185]
[1759905797614,1.38373,4452.5,4452.4,0.5311]
[1759905797818,1.06773,4452.5,4452.4,0.7439]
[1759905798415,1.38373,4452.5,4452.4,0.7439]
[1759905801620,1.38373,4452.5,4452.4,0.5311]
[1759905801816,0.40416,4452.2,4452.1,40.8]
[1759905802022,0.72016,4452.2,4452.1,41.1185]
[1759905803623,0.40416,4452.2,4452.1,41.1185]
[1759905809724,0.40416,4452.2,4452.1,41.3435]
[1759905813937,0.00278026,4453.1,4453.0,0.8714]
[1759905814133,0.00278026,4453.1,4453.0,5.26338239]
[1759905814630,0.00278026,4453.1,4453.0,45.1042]
[1759905820241,1.96909239,4454.4,4453.0,45.1042]
[1759905820242,0.2146,4454.1,4454.0,0.1241]
[1759905820444,1.16308,4454.1,4454.0,0.5589]
[1759905820843,1.16308,4454.1,4454.0,0.8722]
[1759905821144,1.16489109,4454.1,4454.0,0.87476302]
[1759905827938,0.84299109,4454.1,4454.0,0.87476302]
[1759905828138,1.16489109,4454.1,4454.0,0.87476302]
[1759905828641,1.16489109,4454.1,4454.0,0.31586302]
[1759905829136,9.09303917,4454.1,4454.0,0.00256302]
[1759905829348,1.16315,4453.4,4453.3,3.2078]
[1759905829648,2.12233239,4453.4,4453.3,3.2078]
[1759905829841,7.12233239,4453.4,4453.3,3.2078]
[1759905830045,1.1632,4452.8,4452.7,3.5211]
[1759905830242,1.1632,4452.8,4452.7,3.20976421]
[1759905832248,1.1632,4452.8,4452.7,3.73566421]
[1759905832647,1.1632,4452.8,4452.7,3.52306421]
[1759905833545,1.1632,4452.8,4452.7,0.31526421]
[1759905833750,1.1632,4452.8,4452.7,0.00196421]
[1759905834749,2.12238239,4452.8,4452.7,0.00196421]
[1759905834947,1.16329,4451.8,4451.7,3.2078]
[1759905835952,1.16329,4451.8,4451.7,3.20954427]
[1759905836354,12.31390082,4451.8,4451.7,0.00174427]
[1759905836749,12.80043974,4451.8,4451.7,0.00174427]
[1759905836950,0.7591,4450.7,4450.6,3.2078]
[1759905837260,1.94328239,4450.7,4450.6,3.2078]
[1759905838055,1.94582633,4450.7,4450.6,3.21039456]
[1759905840754,1.94582633,4450.7,4450.6,0.00259456]
[1759905842950,0.21714394,4450.7,4450.6,0.75069456]
[1759905843261,0.00254394,4450.7,4450.6,3.95849456]
[1759905843853,0.00254394,4450.7,4450.6,8.95849456]
[1759905845559,0.40423,4451.4,4451.3,0.7533]
[1759905845753,0.40423,4451.4,4451.3,3.9611]
[1759905846558,0.405875,4451.4,4451.3,3.9611]
[1759905847160,0.001645,4451.4,4451.3,9.36534]
[1759905847752,0.001645,4451.4,4451.3,50.16534]
[1759905850467,0.40417,4452.1,4452.0,0.8847]
[1759905850659,0.40417,4452.1,4452.0,4.3175]
[1759905851562,0.40577896,4452.1,4452.0,4.3175]
[1759905852755,1.15067896,4452.1,4452.0,4.3175]
[1759905854572,0.82817896,4452.1,4452.0,4.3175]
[1759905855069,0.61737896,4452.1,4452.0,4.3175]
[1759905855368,0.40577896,4452.1,4452.0,4.3175]
[1759905861582,0.00160896,4452.1,4452.0,5.68086239]
[1759905861766,0.00160896,4452.1,4452.0,4.3175]
[1759905862271,0.00160896,4452.1,4452.0,45.1175]
[1759905865965,0.32410896,4452.1,4452.0,44.8925]
[1759905866174,0.74650896,4452.1,4452.0,3.2078]
[1759905868064,0.74650896,4452.1,4452.0,3.7489]
[1759905868270,0.74650896,4452.1,4452.0,4.0925]
[1759905868771,0.74650896,4452.1,4452.0,3.9611]
[1759905871773,0.74650896,4452.1,4452.0,3.7489]
[1759905871974,0.74650896,4452.1,4452.0,3.5346]
[1759905872478,0.74650896,4452.1,4452.0,3.2078]
[1759905873275,0.74650896,4452.1,4452.0,3.5346]
[1759905873582,0.74650896,4452.1,4452.0,3.7489]
[1759905876083,0.74780896,4452.1,4452.0,4.091]
[1759905878383,0.21060896,4452.1,4452.0,4.091]
[1759905878580,0.00160896,4452.1,4452.0,5.4898937]
[1759905878777,0.00160896,4452.1,4452.0,5.0857137]
[1759905883784,0.00160896,4452.1,4452.0,6.28633725]
[1759905884280,0.00160896,4452.1,4452.0,5.0857137]
[1759905886386,0.00160896,4452.1,4452.0,6.29065417]
[1759905887488,0.00160896,4452.1,4452.0,5.0857137]
[1759905890891,0.22000896,4452.1,4452.0,4.316]
[1759905892092,0.00160896,4452.1,4452.0,4.316]
[1759905895090,0.76830896,4452.1,4452.0,4.091]
[1759905895287,0.76830896,4452.1,4452.0,3.7489]
[1759905895595,0.76830896,4452.1,4452.0,3.9739]
[1759905895784,0.76830896,4452.1,4452.0,3.7489]
[1759905896992,0.76830896,4452.1,4452.0,4.1054]
[1759905898288,0.40577896,4452.1,4452.0,4.3304]
[1759905899082,0.62417896,4452.1,4452.0,4.3304]
[1759905900495,0.22000896,4452.1,4452.0,4.3304]
[1759905900794,0.00160896,4452.1,4452.0,4.3304]
[1759905901396,0.40412,4452.6,4452.5,0.5828]
[1759905901688,0.40412,4452.6,4452.5,5.1175137]
[1759905901890,0.5494,4453.5,4452.5,45.4699137]
[1759905902090,1.7614137,4453.5,4453.4,0.5585]
[1759905902286,2.65214227,4453.5,4453.4,0.5585]
[1759905902490,2.65416818,4453.5,4453.4,0.7798]
[1759905902692,2.32976818,4453.5,4453.4,0.7798]
[1759905902990,1.33615448,4453.5,4453.4,0.7798]
[1759905904097,0.00202591,4453.5,4453.4,1.7745137]
[1759905904993,0.00202591,4453.5,4453.4,1.0048]
[1759905906999,0.00202591,4453.5,4453.4,3.59297797]
[1759905907592,0.40606591,4453.5,4453.4,2.59826427]
[1759905907899,0.62146591,4453.5,4453.4,2.82326427]
[1759905908297,0.40606591,4453.5,4453.4,43.62326427]
[1759905909102,0.00202591,4453.5,4453.4,43.62326427]
[1759905909294,0.00202591,4453.5,4453.4,41.8048]
[1759905910298,0.31822591,4453.5,4453.4,41.8048]
[1759905910599,0.00202591,4453.5,4453.4,41.8048]
[1759905910905,0.00202591,4453.5,4453.4,1.0048]
[1759905911105,0.21742591,4453.5,4453.4,1.0048]
[1759905911300,0.76012591,4453.5,4453.4,0.3322]
[1759905911598,0.76012591,4453.5,4453.4,0.5376]
[1759905914403,0.76012591,4453.5,4453.4,0.7599]
[1759905914604,0.44392591,4453.5,4453.4,0.7599]
[1759905914995,0.00202591,4453.5,4453.4,0.7599]
[1759905919910,0.00202591,4453.5,4453.4,1.5296137]
[1759905921710,0.00202591,4453.5,4453.4,4.7374137]
[1759905921912,0.00202591,4453.5,4453.4,3.9677]
[1759905925807,1.23485,4454.7,4454.5,0.8859]
[1759905926412,3.69288974,4454.6,4454.5,0.8859]
[1759905926713,0.40394,4454.6,4454.5,0.8859]
[1759905926919,0.40590784,4454.6,4454.5,0.88792945]
[1759905927818,0.40590784,4454.6,4454.5,4.09572945]
[1759905928206,0.00196784,4454.6,4454.5,4.32072945]
[1759905928412,3.4232,4455.7,4455.6,0.7589]
[1759905928613,3.90823663,4455.7,4455.6,0.7589]
[1759905928906,4.31207663,4455.7,4455.6,0.7589]
[1759905929113,0.40384,4455.7,4455.6,0.7589]
[1759905929318,0.40655588,4455.7,4455.6,0.7589]
[1759905930529,0.40655588,4455.7,4455.6,41.5589]
[1759905933026,0.40655588,4455.7,4455.6,41.7839]
[1759905934730,0.00271588,4455.7,4455.6,41.7839]
[1759905935724,0.40379,4456.3,4456.2,0.755]
[1759905935928,0.40372,4457.0,4456.9,0.755]
[1759905936126,0.62132,4457.0,4456.9,0.755]
[1759905936330,0.40372,4457.0,4456.9,0.755]
[1759905936832,0.62303788,4457.0,4456.9,0.755]
[1759905937035,0.94893788,4457.0,4456.9,0.755]
[1759905937233,1.16513788,4457.0,4456.9,0.755]
[1759905940134,0.62303788,4457.0,4456.9,0.755]
[1759905941025,0.95103788,4457.0,4456.9,0.755]
[1759905941330,1.17313788,4457.0,4456.9,0.755]
[1759905944132,0.62303788,4457.0,4456.9,0.755]
[1759905944730,1.17313788,4457.0,4456.9,0.755]
[1759905945830,0.84513788,4457.0,4456.9,0.755]
[1759905946839,1.17313788,4457.0,4456.9,0.755]
[1759905948126,0.84513788,4457.0,4456.9,0.755]
[1759905948330,0.62303788,4457.0,4456.9,0.755]
[1759905950035,1.17313788,4457.0,4456.9,0.755]
[1759905952138,0.00171788,4457.0,4456.9,0.979]
[1759905960344,0.00171788,4457.0,4456.9,4.1868]
[1759905961545,0.00171788,4457.0,4456.9,44.9868]
[1759905961741,0.00171788,4457.0,4456.9,44.7628]
[1759905961942,0.00171788,4457.0,4456.9,4.1868]
[1759905962243,0.76451788,4457.0,4456.9,4.1868]
[1759905963943,0.76451788,4457.0,4456.9,0.979]
[1759905964343,1.24859551,4457.0,4456.9,0.979]
[1759905964646,0.00171788,4457.0,4456.9,0.979]
[1759905964842,0.48578963,4457.0,4456.9,0.979]
[1759905965050,0.69848963,4457.0,4456.9,0.979]
[1759905965345,0.21441788,4457.0,4456.9,0.979]
[1759905965846,0.52971788,4457.0,4456.9,0.979]
[1759905966742,0.74641788,4457.0,4456.9,0.979]
[1759905966938,0.21441788,4457.0,4456.9,0.979]
[1759905969157,0.21441788,4457.0,4456.9,0.755]
[1759905969447,0.74641788,4457.0,4456.9,0.5475]
[1759905969852,0.74641788,4457.0,4456.9,0.7635]
[1759905970252,0.00171788,4457.0,4456.9,0.7635]
[1759905974650,1.00917,4457.7,4456.9,0.7635]
[1759905974651,1.0088,4459.3,4457.8,0.7573]
[1759905974849,0.5345,4459.1,4459.0,0.4209]
[1759905975046,1.63892565,4459.1,4459.0,0.7573]
[1759905975247,1.15473,4459.1,4459.0,0.7573]
[1759905975549,0.5345,4459.1,4459.0,0.7573]
[1759905975753,0.53612283,4459.1,4459.0,0.75991466]
[1759905976856,0.75282283,4459.1,4459.0,0.75991466]
[1759905977846,0.75282283,4459.1,4459.0,0.20751466]
[1759905978255,0.75282283,4459.1,4459.0,0.75991466]
[1759905981150,0.31692283,4459.1,4459.0,0.75991466]
[1759905981352,0.75282283,4459.1,4459.0,0.75991466]
[1759905982960,0.75282283,4459.1,4459.0,0.00261466]
[1759905984255,0.75282283,4459.1,4459.0,0.20751466]
[1759905984655,0.75282283,4459.1,4459.0,0.00261466]
[1759905985859,5.75282283,4459.1,4459.0,0.00261466]
[1759905986156,0.83947,4458.6,4458.5,3.2078]
[1759905986356,1.37877,4458.6,4458.5,3.2078]
[1759905987254,1.37877,4458.6,4458.5,3.20986443]
[1759905988155,1.37877,4458.6,4458.5,3.41476443]
[1759905988750,1.37877,4458.6,4458.5,0.00206443]
[1759905989155,4.28507592,4458.6,4458.5,0.00206443]
[1759905990550,9.28507592,4458.6,4458.5,0.00206443]
[1759905997063,4.06107592,4458.6,4458.5,0.22076443]
[1759905997260,4.06107592,4458.6,4458.5,0.75266443]
[1759905997261,1.37877,4458.6,4458.5,0.75266443]
[1759905997558,1.37877,4458.6,4458.5,0.43416443]
[1759905997755,1.37877,4458.6,4458.5,0.22076443]
[1759905998963,1.15477,4458.6,4458.5,0.75266443]
[1759905999163,1.37877,4458.6,4458.5,0.75266443]
[1759905999354,1.15477,4458.6,4458.5,0.75266443]
[1759905999557,0.40356,4458.7,4458.6,0.5372]
[1759905999760,0.62756,4458.7,4458.6,0.7506]
[1759905999961,1.14796,4458.7,4458.6,1.51807019]
[1759906000366,0.62756,4458.7,4458.6,1.51807019]
[1759906001365,1.16016,4458.7,4458.6,1.51807019]
[1759906003166,0.93616,4458.7,4458.6,1.51807019]
[1759906004365,1.16336,4458.7,4458.6,0.4321]
[1759906005067,1.16336,4458.7,4458.6,0.7399]
[1759906006365,1.16336,4458.7,4458.6,0.4321]
[1759906006570,0.7598,4458.6,4458.5,3.20986443]
[1759906007065,0.7598,4458.6,4458.5,4.71983462]
[1759906007368,0.7598,4458.6,4458.5,4.41203462]
[1759906007568,0.7598,4458.6,4458.5,4.71983462]
[1759906008273,0.5326,4458.6,4458.5,4.71983462]
[1759906008771,0.7598,4458.6,4458.5,4.71983462]
[1759906009071,0.7598,4458.6,4458.5,4.41203462]
[1759906009572,0.7598,4458.6,4458.5,4.71983462]
[1759906010076,0.7598,4458.6,4458.5,4.41203462]
[1759906011174,0.7598,4458.6,4458.5,4.71983462]
[1759906011375,0.7598,4458.6,4458.5,3.20986443]
[1759906012176,0.7598,4458.6,4458.5,0.00206443]
[1759906012368,2.00683752,4458.6,4458.5,0.00206443]
[1759906014173,0.53513,4458.0,4457.9,3.2078]
[1759906014479,1.51893,4458.0,4457.9,3.4255]
[1759906015173,1.51893,4458.0,4457.9,4.7203206]
[1759906015871,1.51893,4458.0,4457.9,3.42805041]
[1759906016073,1.51893,4458.0,4457.9,3.21035041]
[1759906020182,2.28640019,4458.0,4457.9,3.21035041]
[1759906021781,1.51893,4458.0,4457.9,3.42805041]
[1759906022784,1.99848717,4458.0,4457.9,3.42805041]
[1759906023181,1.51893,4458.0,4457.9,3.42805041]
[1759906023778,1.29493,4458.0,4457.9,3.42805041]
[1759906023979,1.51893,4458.0,4457.9,3.42805041]
[1759906024381,1.51893,4458.0,4457.9,3.64505041]
[1759906024584,1.51893,4458.0,4457.9,3.95285041]
[1759906026080,1.38743,4458.0,4457.9,3.95285041]
[1759906026482,0.40363,4458.0,4457.9,3.95285041]
[1759906027987,1.29653,4458.0,4457.9,3.64505041]
[1759906028788,1.29653,4458.0,4457.9,3.21035041]
[1759906029974,1.29653,4458.0,4457.9,0.00255041]
[1759906031487,2.06400019,4458.0,4457.9,0.00255041]
[1759906032893,0.7681,4457.2,4457.1,1.19780848]
[1759906033081,1.17181,4457.1,4457.0,3.2078]
[1759906033282,1.17181,4457.1,4457.0,3.4229]
[1759906033789,1.17181,4457.1,4457.0,3.2078]
[1759906034089,1.17181,4457.1,4457.0,3.2102688]
[1759906035678,4.09100232,4457.1,4457.0,0.0024688]
[1759906036284,4.31500232,4457.1,4457.0,0.0024688]
[1759906036890,1.29671,4456.0,4455.9,4.62070848]
[1759906037082,1.29671,4456.0,4455.9,3.2078]
[1759906037083,1.52071,4456.0,4455.9,3.2078]
[1759906037779,1.52071,4456.0,4455.9,3.20957248]
[1759906038685,2.06418019,4456.0,4455.9,0.00177248]
[1759906038885,2.28818019,4456.0,4455.9,0.00177248]
[1759906039282,2.28818019,4456.0,4455.4,3.2078]
[1759906039283,0.4039,4455.0,4454.9,3.2078]
[1759906039482,1.5208,4455.0,4454.9,3.2078]
[1759906040180,1.52285972,4455.0,4454.9,3.20955949]
[1759906041491,4.4830464,4455.0,4454.9,0.00175949]
[1759906043495,4.2590464,4455.0,4454.9,0.00175949]
[1759906043694,1.52285972,4455.0,4454.9,0.73825949]
[1759906044395,1.52285972,4455.0,4454.9,0.42865949]
[1759906047192,1.52285972,4455.0,4454.9,0.21685949]
[1759906047395,0.3363,4454.5,4454.4,3.2078]
[1759906047595,0.7681,4453.9,4453.8,3.9443]
[1759906047990,0.40398,4454.2,4453.9,0.3096]
[1759906048196,0.96648,4454.2,4454.1,0.7365]
[1759906048393,1.19048,4454.2,4454.1,0.73834834]
[1759906050096,0.96648,4454.2,4454.1,0.73834834]
[1759906053207,1.17208,4454.2,4454.1,0.42874834]
[1759906054100,1.17208,4454.2,4454.1,0.73834834]
[1759906054398,0.5625,4454.2,4454.1,0.73834834]
[1759906054603,0.62897,4454.3,4454.1,0.42874834]
[1759906054804,0.96527,4454.3,4454.2,0.7365]
[1759906056207,0.40397,4454.3,4454.2,0.7365]
[1759906056508,0.40395,4454.5,4454.2,5.4269]
[1759906056700,0.40395,4454.5,4454.4,4.90486823]
[1759906056896,0.40393,4454.7,4454.6,0.7391]
[1759906057497,0.40391,4454.9,4454.8,0.7391]
[1759906057703,0.00205972,4455.0,4454.9,1.14301]
[1759906057908,0.00205972,4455.0,4454.9,4.35081]
[1759906058309,0.00205972,4455.0,4454.9,3.9469]
[1759906063508,0.00205972,4455.0,4454.9,44.7469]
[1759906064010,0.00205972,4455.0,4454.9,49.7469]
[1759906065917,0.00205972,4455.0,4454.9,49.9719]
[1759906069317,0.00205972,4455.0,4454.9,44.9719]
[1759906078826,0.31895972,4455.0,4454.9,44.9719]
[1759906081919,5.87845972,4455.0,4454.9,3.2078]
[1759906082930,0.4284,4454.4,4454.3,3.4299]
[1759906083119,1.14925,4454.4,4454.3,3.4299]
[1759906083927,1.14925,4454.4,4454.3,3.2078]
[1759906085022,1.14925,4454.4,4454.3,3.4299]
[1759906085224,1.14925,4454.4,4454.3,4.6265563]
[1759906085520,1.14925,4454.4,4454.3,3.9518]
[1759906085721,1.14925,4454.4,4454.3,5.1484563]
[1759906087429,1.14925,4454.4,4454.3,1.9406563]
[1759906087629,1.14925,4454.4,4454.3,4.8360563]
[1759906087829,1.14925,4454.4,4454.3,4.6265563]
[1759906088123,1.14925,4454.4,4454.3,3.4299]
[1759906090232,1.14925,4454.4,4454.3,3.7423]
[1759906090728,1.14925,4454.4,4454.3,3.9639]
[1759906090928,1.14925,4454.4,4454.3,5.1605563]
[1759906091625,0.3561,4454.5,4454.3,4.36786]
[1759906091626,0.40395,4454.5,4454.3,4.36786]
[1759906091923,0.329,4454.5,4454.4,0.7589]
[1759906092130,0.8869,4454.5,4454.4,0.4465]
[1759906092328,0.8869,4454.5,4454.4,41.2465]
[1759906092720,0.8869,4454.5,4454.4,0.7589]
[1759906093630,0.73295,4454.4,4454.3,44.3202]
[1759906093832,1.15695,4454.4,4454.3,3.2078]
[1759906094435,1.15695,4454.4,4454.3,3.4327]
[1759906094837,1.15695,4454.4,4454.3,3.2078]
[1759906097438,1.15697,4454.2,4454.1,0.00184834]
[1759906097636,1.38197,4454.2,4454.1,0.00184834]
[1759906102439,1.15697,4454.2,4454.1,0.76074834]
[1759906102644,0.329,4454.4,4454.3,0.534]
[1759906102942,0.225,4454.4,4454.3,0.7589]
[1759906103334,0.554,4454.4,4454.3,0.7589]
[1759906103533,0.767,4454.4,4454.3,0.7589]
[1759906103742,0.978,4454.4,4454.3,3.9667]
[1759906104941,0.542,4454.4,4454.3,3.9667]
[1759906105843,0.753,4454.9,4454.8,0.7589]
[1759906106042,0.978,4454.9,4454.8,0.7589]
[1759906107236,1.38191,4454.9,4454.8,0.7589]
[1759906107436,1.38191,4454.9,4454.8,0.4465]
[1759906107845,1.38191,4454.9,4454.8,0.2249]
[1759906108443,0.54,4454.6,4454.5,0.2249]
[1759906108641,0.54,4454.6,4454.3,3.9765557]
[1759906108642,0.753,4454.6,4454.3,3.9765557]
[1759906108839,1.23478,4454.9,4454.3,3.2078]